[Event "Titled Tuesday Blitz August 1 Late 2023"]
[White "Nikolova, Adriana"]
[Black "Golubev, Mikhail"]
[WhiteFideId "2908689"]
[BlackFideId "14100983"]
[WhiteElo "2423"]
[BlackElo "2557"]
[Result "1/2-1/2"]
[Round "3"]
[TimeControl "180+1"]
[Date "2023.08.01"]
[WhiteClock "0:00:09"]
[BlackClock "0:00:13"]
[Board "94"]

1. e4 {[%clk 0:03:00]}  c5 {[%clk 0:02:59]} 2. Nf3 {[%clk 0:02:59]}  d6 {[%clk 0:02:59]} 3. d4 {[%clk 0:02:58]}  Nf6 {[%clk 0:02:59]} 4. Nc3 {[%clk 0:02:58]}  cxd4 {[%clk 0:02:59]} 5. Nxd4 {[%clk 0:02:59]}  g6 {[%clk 0:02:59]} 6. Be3 {[%clk 0:02:58]}  Bg7 {[%clk 0:02:59]} 7. Bc4 {[%clk 0:02:58]}  O-O {[%clk 0:02:47]} 8. f3 {[%clk 0:02:54]}  Nc6 {[%clk 0:02:47]} 9. Qd2 {[%clk 0:02:51]}  Bd7 {[%clk 0:02:47]} 10. Bb3 {[%clk 0:02:50]}  Nxd4 {[%clk 0:02:45]} 11. Bxd4 {[%clk 0:02:49]}  b5 {[%clk 0:02:45]} 12. h4 {[%clk 0:02:45]}  a5 {[%clk 0:02:41]} 13. Nd5 {[%clk 0:02:40]}  e5 {[%clk 0:01:44]} 14. Nxf6+ {[%clk 0:02:35]}  Bxf6 {[%clk 0:01:43]} 15. Be3 {[%clk 0:02:21]}  Bxh4+ {[%clk 0:01:17]} 16. Kd1 {[%clk 0:01:45]}  h5 {[%clk 0:00:33]} 17. Bh6 {[%clk 0:01:22]}  Re8 {[%clk 0:00:30]} 18. Qxd6 {[%clk 0:01:19]}  Be6 {[%clk 0:00:25]} 19. Qxd8 {[%clk 0:01:14]}  Rexd8+ {[%clk 0:00:25]} 20. Ke2 {[%clk 0:01:14]}  Bxb3 {[%clk 0:00:25]} 21. axb3 {[%clk 0:01:15]}  Be7 {[%clk 0:00:24]} 22. Bd2 {[%clk 0:01:07]}  a4 {[%clk 0:00:23]} 23. b4 {[%clk 0:01:01]}  Rdc8 {[%clk 0:00:21]} 24. c3 {[%clk 0:00:54]}  Kf8 {[%clk 0:00:21]} 25. Be3 {[%clk 0:00:54]}  Ke8 {[%clk 0:00:19]} 26. Rhd1 {[%clk 0:00:54]}  Rd8 {[%clk 0:00:18]} 27. Bb6 {[%clk 0:00:55]}  Rd7 {[%clk 0:00:17]} 28. Rxd7 {[%clk 0:00:52]}  Kxd7 {[%clk 0:00:17]} 29. Be3 {[%clk 0:00:48]}  Ke6 {[%clk 0:00:16]} 30. Rd1 {[%clk 0:00:44]}  a3 {[%clk 0:00:15]} 31. bxa3 {[%clk 0:00:45]}  Rxa3 {[%clk 0:00:14]} 32. Rd5 {[%clk 0:00:44]}  Ra2+ {[%clk 0:00:13]} 33. Kf1 {[%clk 0:00:32]}  Rc2 {[%clk 0:00:12]} 34. Rxb5 {[%clk 0:00:31]}  Rxc3 {[%clk 0:00:12]} 35. Rb6+ {[%clk 0:00:26]}  Kd7 {[%clk 0:00:12]} 36. Rb7+ {[%clk 0:00:23]}  Ke6 {[%clk 0:00:11]} 37. Rb6+ {[%clk 0:00:21]}  Kd7 {[%clk 0:00:11]} 38. Rb7+ {[%clk 0:00:20]}  Kd8 {[%clk 0:00:11]} 39. Ke2 {[%clk 0:00:15]}  Rc2+ {[%clk 0:00:11]} 40. Kd3 {[%clk 0:00:15]}  Rxg2 {[%clk 0:00:11]} 41. Bb6+ {[%clk 0:00:11]}  Ke8 {[%clk 0:00:11]} 42. Rb8+ {[%clk 0:00:10]}  Kd7 {[%clk 0:00:09]} 43. Rb7+ {[%clk 0:00:11]}  Ke6 {[%clk 0:00:09]} 44. Bc5 {[%clk 0:00:10]}  Bxc5 {[%clk 0:00:08]} 45. bxc5 {[%clk 0:00:11]}  Rg1 {[%clk 0:00:08]} 46. Rb6+ {[%clk 0:00:10]}  Kd7 {[%clk 0:00:06]} 47. Rb7+ {[%clk 0:00:10]}  Ke6 {[%clk 0:00:06]} 48. Rb6+ {[%clk 0:00:11]}  Kd7 {[%clk 0:00:05]} 49. Rb7+ {[%clk 0:00:11]}  Kc6 {[%clk 0:00:04]} 50. Rxf7 {[%clk 0:00:12]}  Kxc5 {[%clk 0:00:05]} 51. Rc7+ {[%clk 0:00:09]}  Kd6 {[%clk 0:00:04]} 52. Rh7 {[%clk 0:00:09]}  Rf1 {[%clk 0:00:04]} 53. Ke2 {[%clk 0:00:08]}  Rg1 {[%clk 0:00:05]} 54. Kf2 {[%clk 0:00:08]}  Rg5 {[%clk 0:00:05]} 55. Rh8 {[%clk 0:00:07]}  Ke6 {[%clk 0:00:05]} 56. Rh7 {[%clk 0:00:07]}  Kf6 {[%clk 0:00:05]} 57. Rh8 {[%clk 0:00:07]}  Kg7 {[%clk 0:00:05]} 58. Ra8 {[%clk 0:00:07]}  h4 {[%clk 0:00:06]} 59. Ra7+ {[%clk 0:00:08]}  Kh6 {[%clk 0:00:06]} 60. Ra1 {[%clk 0:00:07]}  Rh5 {[%clk 0:00:06]} 61. Rh1 {[%clk 0:00:08]}  h3 {[%clk 0:00:05]} 62. Kg3 {[%clk 0:00:08]}  Kg5 {[%clk 0:00:06]} 63. Rxh3 {[%clk 0:00:07]}  Rxh3+ {[%clk 0:00:06]} 64. Kxh3 {[%clk 0:00:08]}  Kf4 {[%clk 0:00:06]} 65. Kg2 {[%clk 0:00:08]}  g5 {[%clk 0:00:06]} 66. Kf2 {[%clk 0:00:07]}  g4 {[%clk 0:00:07]} 67. fxg4 {[%clk 0:00:06]}  Kxg4 {[%clk 0:00:07]} 68. Ke3 {[%clk 0:00:06]}  Kg3 {[%clk 0:00:08]} 69. Kd3 {[%clk 0:00:06]}  Kf4 {[%clk 0:00:08]} 70. Kd2 {[%clk 0:00:07]}  Kxe4 {[%clk 0:00:08]} 71. Ke2 {[%clk 0:00:07]}  Kd4 {[%clk 0:00:09]} 72. Kd2 {[%clk 0:00:07]}  e4 {[%clk 0:00:10]} 73. Ke2 {[%clk 0:00:08]}  e3 {[%clk 0:00:10]} 74. Ke1 {[%clk 0:00:08]}  Kd3 {[%clk 0:00:11]} 75. Kd1 {[%clk 0:00:08]}  e2+ {[%clk 0:00:12]} 76. Ke1 {[%clk 0:00:09]}  Ke3 {[%clk 0:00:13]} 1/2-1/2


[Site "https://www.chess.com"]

[Event "Titled Tuesday Blitz August 1 Late 2023"]
[White "Ambartsumova, Karina"]
[Black "i_like_explosions"]
[WhiteFideId "4166299"]
[WhiteElo "2550"]
[BlackElo "2419"]
[Result "1-0"]
[Round "3"]
[TimeControl "180+1"]
[Date "2023.08.01"]
[WhiteClock "0:00:53"]
[BlackClock "0:00:00"]
[Board "97"]

1. c4 {[%clk 0:03:00]}  Nf6 {[%clk 0:03:00]} 2. Nc3 {[%clk 0:02:58]}  g6 {[%clk 0:03:00]} 3. Nf3 {[%clk 0:02:56]}  Bg7 {[%clk 0:03:00]} 4. e4 {[%clk 0:02:56]}  d6 {[%clk 0:02:59]} 5. d4 {[%clk 0:02:56]}  O-O {[%clk 0:03:00]} 6. h3 {[%clk 0:02:56]}  e5 {[%clk 0:02:59]} 7. d5 {[%clk 0:02:55]}  Na6 {[%clk 0:03:00]} 8. Be3 {[%clk 0:02:55]}  Nd7 {[%clk 0:03:00]} 9. g4 {[%clk 0:02:55]}  Nac5 {[%clk 0:02:58]} 10. b4 {[%clk 0:02:48]}  Na6 {[%clk 0:02:58]} 11. a3 {[%clk 0:02:48]}  Qe7 {[%clk 0:02:48]} 12. Qc2 {[%clk 0:02:34]}  c5 {[%clk 0:02:47]} 13. b5 {[%clk 0:02:26]}  Nc7 {[%clk 0:02:46]} 14. Bd3 {[%clk 0:02:27]}  b6 {[%clk 0:02:40]} 15. Nd2 {[%clk 0:02:13]}  a6 {[%clk 0:02:33]} 16. a4 {[%clk 0:02:04]}  axb5 {[%clk 0:02:32]} 17. cxb5 {[%clk 0:02:05]}  Bb7 {[%clk 0:02:23]} 18. O-O-O {[%clk 0:02:01]}  Kh8 {[%clk 0:02:23]} 19. Nc4 {[%clk 0:01:59]}  f5 {[%clk 0:01:32]} 20. f3 {[%clk 0:01:59]}  fxe4 {[%clk 0:01:18]} 21. fxe4 {[%clk 0:01:59]}  Rf7 {[%clk 0:01:15]} 22. h4 {[%clk 0:01:57]}  Raf8 {[%clk 0:01:14]} 23. h5 {[%clk 0:01:50]}  gxh5 {[%clk 0:01:13]} 24. Rxh5 {[%clk 0:01:45]}  Nf6 {[%clk 0:00:55]} 25. Bg5 {[%clk 0:01:42]}  Qd7 {[%clk 0:00:49]} 26. Bxf6 {[%clk 0:01:41]}  Rxf6 {[%clk 0:00:35]} 27. Qh2 {[%clk 0:01:27]}  h6 {[%clk 0:00:20]} 28. g5 {[%clk 0:01:25]}  Rf2 {[%clk 0:00:19]} 29. Qh1 {[%clk 0:01:24]}  Qg4 {[%clk 0:00:13]} 30. gxh6 {[%clk 0:01:19]}  Qf4+ {[%clk 0:00:12]} 31. Kb1 {[%clk 0:01:17]}  Bf6 {[%clk 0:00:12]} 32. Rf5 {[%clk 0:01:10]}  Qg3 {[%clk 0:00:08]} 33. Ne2 {[%clk 0:00:57]}  Rxe2 {[%clk 0:00:06]} 34. Bxe2 {[%clk 0:00:58]}  Qc3 {[%clk 0:00:05]} 35. Qf3 {[%clk 0:00:54]}  Qb4+ {[%clk 0:00:03]} 36. Nb2 {[%clk 0:00:54]}  Bc8 {[%clk 0:00:00]} 37. Rxf6 {[%clk 0:00:53]} 1-0


[Site "https://www.chess.com"]

[Event "Titled Tuesday Blitz August 1 Late 2023"]
[White "Der_Balak_3Halak"]
[Black "Kochiev, Ivan"]
[BlackFideId "2917890"]
[WhiteElo "2408"]
[BlackElo "2546"]
[Result "0-1"]
[Round "3"]
[TimeControl "180+1"]
[Date "2023.08.01"]
[WhiteClock "0:00:28"]
[BlackClock "0:00:13"]
[Board "102"]

1. e4 {[%clk 0:03:00]}  Nf6 {[%clk 0:03:00]} 2. e5 {[%clk 0:03:00]}  Nd5 {[%clk 0:03:00]} 3. c4 {[%clk 0:02:59]}  Nb6 {[%clk 0:03:00]} 4. d4 {[%clk 0:03:00]}  d6 {[%clk 0:03:00]} 5. f4 {[%clk 0:03:00]}  g6 {[%clk 0:02:57]} 6. Nc3 {[%clk 0:02:58]}  Bg7 {[%clk 0:02:57]} 7. Nf3 {[%clk 0:02:58]}  Bg4 {[%clk 0:02:57]} 8. Be3 {[%clk 0:02:53]}  O-O {[%clk 0:02:52]} 9. h3 {[%clk 0:02:51]}  Bxf3 {[%clk 0:02:49]} 10. Qxf3 {[%clk 0:02:52]}  dxe5 {[%clk 0:02:49]} 11. fxe5 {[%clk 0:02:47]}  c5 {[%clk 0:02:38]} 12. Rd1 {[%clk 0:02:38]}  cxd4 {[%clk 0:02:37]} 13. Bxd4 {[%clk 0:02:38]}  Nc6 {[%clk 0:02:35]} 14. Nd5 {[%clk 0:02:27]}  Nxd4 {[%clk 0:02:27]} 15. Rxd4 {[%clk 0:02:28]}  Bxe5 {[%clk 0:02:24]} 16. Nf6+ {[%clk 0:02:26]}  exf6 {[%clk 0:02:12]} 17. Rxd8 {[%clk 0:02:27]}  Raxd8 {[%clk 0:02:09]} 18. Be2 {[%clk 0:02:17]}  Rfe8 {[%clk 0:02:03]} 19. O-O {[%clk 0:01:29]}  Rd2 {[%clk 0:01:54]} 20. Kh1 {[%clk 0:01:17]}  Bd4 {[%clk 0:01:32]} 21. c5 {[%clk 0:01:10]}  Rexe2 {[%clk 0:01:25]} 22. cxb6 {[%clk 0:01:07]}  axb6 {[%clk 0:01:25]} 23. b3 {[%clk 0:00:57]}  Rxa2 {[%clk 0:01:10]} 24. Qxb7 {[%clk 0:00:55]}  Rxg2 {[%clk 0:01:06]} 25. Qxg2 {[%clk 0:00:55]}  Rxg2 {[%clk 0:01:06]} 26. Kxg2 {[%clk 0:00:55]}  Kf8 {[%clk 0:01:06]} 27. Kf3 {[%clk 0:00:55]}  f5 {[%clk 0:00:56]} 28. Re1 {[%clk 0:00:51]}  Kg7 {[%clk 0:00:53]} 29. Ke2 {[%clk 0:00:42]}  g5 {[%clk 0:00:33]} 30. b4 {[%clk 0:00:39]}  h5 {[%clk 0:00:14]} 31. Rd1 {[%clk 0:00:39]}  Be5 {[%clk 0:00:11]} 32. Rd5 {[%clk 0:00:38]}  f6 {[%clk 0:00:08]} 33. Kd3 {[%clk 0:00:33]}  g4 {[%clk 0:00:04]} 34. hxg4 {[%clk 0:00:31]}  fxg4 {[%clk 0:00:05]} 35. Rd7+ {[%clk 0:00:32]}  Kg6 {[%clk 0:00:05]} 36. Rb7 {[%clk 0:00:33]}  g3 {[%clk 0:00:03]} 37. Ke3 {[%clk 0:00:33]}  h4 {[%clk 0:00:02]} 38. Kf3 {[%clk 0:00:32]}  h3 {[%clk 0:00:02]} 39. Rb8 {[%clk 0:00:28]}  g2 {[%clk 0:00:02]} 40. Rg8+ {[%clk 0:00:26]}  Kf7 {[%clk 0:00:02]} 41. Rg4 {[%clk 0:00:25]}  Bd4 {[%clk 0:00:02]} 42. Rxd4 {[%clk 0:00:18]}  g1=Q {[%clk 0:00:03]} 43. Rd7+ {[%clk 0:00:19]}  Ke6 {[%clk 0:00:03]} 44. Rb7 {[%clk 0:00:20]}  Qh1+ {[%clk 0:00:03]} 45. Ke3 {[%clk 0:00:21]}  Qxb7 {[%clk 0:00:04]} 46. Kd4 {[%clk 0:00:21]}  Qd5+ {[%clk 0:00:05]} 47. Kc3 {[%clk 0:00:21]}  Qb5 {[%clk 0:00:06]} 48. Kb3 {[%clk 0:00:22]}  Qxb4+ {[%clk 0:00:06]} 49. Kxb4 {[%clk 0:00:22]}  h2 {[%clk 0:00:07]} 50. Kb5 {[%clk 0:00:23]}  h1=Q {[%clk 0:00:08]} 51. Kxb6 {[%clk 0:00:24]}  Qd5 {[%clk 0:00:09]} 52. Kc7 {[%clk 0:00:25]}  f5 {[%clk 0:00:10]} 53. Kb6 {[%clk 0:00:24]}  f4 {[%clk 0:00:11]} 54. Ka7 {[%clk 0:00:25]}  f3 {[%clk 0:00:11]} 55. Kb6 {[%clk 0:00:26]}  f2 {[%clk 0:00:12]} 56. Ka6 {[%clk 0:00:27]}  f1=Q+ {[%clk 0:00:13]} 57. Kb6 {[%clk 0:00:28]}  Qfb5+ {[%clk 0:00:13]} 58. Ka7 {[%clk 0:00:28]}  Qbb7# {[%clk 0:00:13]} 0-1


[Site "https://www.chess.com"]

[Event "Titled Tuesday Blitz August 1 Late 2023"]
[White "Fiorito, Francisco"]
[Black "Mike24147"]
[WhiteFideId "180165"]
[WhiteElo "2544"]
[BlackElo "2375"]
[Result "0-1"]
[Round "3"]
[TimeControl "180+1"]
[Date "2023.08.01"]
[WhiteClock "0:00:00"]
[BlackClock "0:00:23"]
[Board "104"]

1. a3 {[%clk 0:03:00]}  e5 {[%clk 0:02:56]} 2. b4 {[%clk 0:02:50]}  g6 {[%clk 0:02:55]} 3. Bb2 {[%clk 0:02:47]}  Bg7 {[%clk 0:02:55]} 4. h4 {[%clk 0:02:47]}  h5 {[%clk 0:02:54]} 5. Nf3 {[%clk 0:02:47]}  d6 {[%clk 0:02:53]} 6. c4 {[%clk 0:02:47]}  Ne7 {[%clk 0:02:52]} 7. Nc3 {[%clk 0:02:43]}  O-O {[%clk 0:02:50]} 8. e3 {[%clk 0:02:39]}  e4 {[%clk 0:02:45]} 9. Ng5 {[%clk 0:02:35]}  Bf5 {[%clk 0:02:39]} 10. Qc2 {[%clk 0:02:31]}  Nbc6 {[%clk 0:02:33]} 11. Ngxe4 {[%clk 0:02:28]}  d5 {[%clk 0:02:26]} 12. cxd5 {[%clk 0:02:25]}  Nxd5 {[%clk 0:02:24]} 13. d3 {[%clk 0:02:13]}  Re8 {[%clk 0:02:14]} 14. Nxd5 {[%clk 0:02:10]}  Qxd5 {[%clk 0:02:01]} 15. Bxg7 {[%clk 0:02:10]}  Kxg7 {[%clk 0:02:00]} 16. Qc3+ {[%clk 0:02:08]}  Qe5 {[%clk 0:01:58]} 17. Qxe5+ {[%clk 0:02:08]}  Nxe5 {[%clk 0:01:59]} 18. f3 {[%clk 0:01:52]}  Rad8 {[%clk 0:01:59]} 19. O-O-O {[%clk 0:01:49]}  a5 {[%clk 0:01:57]} 20. Be2 {[%clk 0:01:42]}  axb4 {[%clk 0:01:56]} 21. axb4 {[%clk 0:01:43]}  Nc6 {[%clk 0:01:55]} 22. b5 {[%clk 0:01:40]}  Na7 {[%clk 0:01:54]} 23. Nc3 {[%clk 0:01:39]}  Rxe3 {[%clk 0:01:50]} 24. Rd2 {[%clk 0:01:23]}  Rde8 {[%clk 0:01:46]} 25. Bf1 {[%clk 0:01:04]}  Re1+ {[%clk 0:01:37]} 26. Kc2 {[%clk 0:01:00]}  R8e5 {[%clk 0:01:31]} 27. Kb2 {[%clk 0:00:36]}  Nxb5 {[%clk 0:01:30]} 28. d4 {[%clk 0:00:36]}  Nxc3 {[%clk 0:01:04]} 29. dxe5 {[%clk 0:00:35]}  Nb5 {[%clk 0:00:58]} 30. f4 {[%clk 0:00:14]}  Rb1+ {[%clk 0:00:56]} 31. Ka2 {[%clk 0:00:15]}  Nc3+ {[%clk 0:00:55]} 32. Ka3 {[%clk 0:00:16]}  b5 {[%clk 0:00:53]} 33. Rb2 {[%clk 0:00:10]}  Re1 {[%clk 0:00:37]} 34. g3 {[%clk 0:00:06]}  c5 {[%clk 0:00:37]} 35. Bg2 {[%clk 0:00:03]}  b4+ {[%clk 0:00:37]} 36. Kb3 {[%clk 0:00:03]}  Be6+ {[%clk 0:00:37]} 37. Kc2 {[%clk 0:00:02]}  Re2+ {[%clk 0:00:37]} 38. Kc1 {[%clk 0:00:02]}  Na2+ {[%clk 0:00:35]} 39. Kb1 {[%clk 0:00:02]}  Nc3+ {[%clk 0:00:34]} 40. Ka1 {[%clk 0:00:02]}  Re3 {[%clk 0:00:32]} 41. Rf1 {[%clk 0:00:01]}  Rxg3 {[%clk 0:00:31]} 42. Bc6 {[%clk 0:00:02]}  Rh3 {[%clk 0:00:24]} 43. Rh2 {[%clk 0:00:00]}  Rxh2 {[%clk 0:00:23]} 0-1


[Site "https://www.chess.com"]

[Event "Titled Tuesday Blitz August 1 Late 2023"]
[White "Slavin, Alexey"]
[Black "Toropov, Pavel"]
[WhiteFideId "24104388"]
[BlackFideId "24129178"]
[WhiteElo "2361"]
[BlackElo "2536"]
[Result "0-1"]
[Round "3"]
[TimeControl "180+1"]
[Date "2023.08.01"]
[WhiteClock "0:00:07"]
[BlackClock "0:00:13"]
[Board "109"]

1. e4 {[%clk 0:02:59]}  e6 {[%clk 0:03:00]} 2. Nf3 {[%clk 0:02:59]}  d5 {[%clk 0:03:01]} 3. e5 {[%clk 0:03:00]}  c5 {[%clk 0:03:00]} 4. b4 {[%clk 0:03:00]}  b6 {[%clk 0:02:57]} 5. a3 {[%clk 0:02:59]}  a5 {[%clk 0:02:54]} 6. b5 {[%clk 0:02:58]}  d4 {[%clk 0:02:48]} 7. a4 {[%clk 0:02:55]}  Bb7 {[%clk 0:02:48]} 8. Bc4 {[%clk 0:02:51]}  Nd7 {[%clk 0:02:48]} 9. d3 {[%clk 0:02:48]}  Bxf3 {[%clk 0:02:46]} 10. gxf3 {[%clk 0:02:44]}  Nxe5 {[%clk 0:02:46]} 11. Ba2 {[%clk 0:02:43]}  Nf6 {[%clk 0:02:45]} 12. Bf4 {[%clk 0:02:39]}  Bd6 {[%clk 0:02:39]} 13. Bg3 {[%clk 0:02:37]}  O-O {[%clk 0:02:34]} 14. Nd2 {[%clk 0:02:37]}  Nd5 {[%clk 0:02:28]} 15. Ne4 {[%clk 0:02:32]}  Bc7 {[%clk 0:02:24]} 16. Qe2 {[%clk 0:02:11]}  Nb4 {[%clk 0:02:00]} 17. Bb3 {[%clk 0:02:08]}  c4 {[%clk 0:01:25]} 18. dxc4 {[%clk 0:01:49]}  d3 {[%clk 0:01:23]} 19. cxd3 {[%clk 0:01:41]}  Nexd3+ {[%clk 0:01:13]} 20. Kf1 {[%clk 0:01:40]}  f5 {[%clk 0:00:31]} 21. Bxc7 {[%clk 0:01:20]}  Qxc7 {[%clk 0:00:31]} 22. Ng5 {[%clk 0:01:18]}  Nc5 {[%clk 0:00:18]} 23. Nxe6 {[%clk 0:01:11]}  Nxe6 {[%clk 0:00:18]} 24. Qxe6+ {[%clk 0:01:10]}  Kh8 {[%clk 0:00:19]} 25. c5 {[%clk 0:00:46]}  Qxc5 {[%clk 0:00:18]} 26. Qc4 {[%clk 0:00:45]}  Rac8 {[%clk 0:00:17]} 27. Qxc5 {[%clk 0:00:43]}  Rxc5 {[%clk 0:00:18]} 28. Kg2 {[%clk 0:00:43]}  Rc3 {[%clk 0:00:18]} 29. Be6 {[%clk 0:00:41]}  g6 {[%clk 0:00:17]} 30. Rhd1 {[%clk 0:00:39]}  Rf6 {[%clk 0:00:16]} 31. Bd7 {[%clk 0:00:29]}  Kg7 {[%clk 0:00:16]} 32. Rac1 {[%clk 0:00:28]}  Rxc1 {[%clk 0:00:16]} 33. Rxc1 {[%clk 0:00:28]}  Rd6 {[%clk 0:00:16]} 34. Bc6 {[%clk 0:00:27]}  Kf6 {[%clk 0:00:17]} 35. Ba8 {[%clk 0:00:26]}  Rd2 {[%clk 0:00:16]} 36. Rc7 {[%clk 0:00:25]}  Ra2 {[%clk 0:00:15]} 37. Rb7 {[%clk 0:00:24]}  Rxa4 {[%clk 0:00:14]} 38. Rxb6+ {[%clk 0:00:24]}  Ke5 {[%clk 0:00:15]} 39. Rb7 {[%clk 0:00:24]}  Nd3 {[%clk 0:00:14]} 40. Re7+ {[%clk 0:00:20]}  Kd6 {[%clk 0:00:13]} 41. Re3 {[%clk 0:00:19]}  Nf4+ {[%clk 0:00:13]} 42. Kg3 {[%clk 0:00:20]}  Rb4 {[%clk 0:00:14]} 43. Bc6 {[%clk 0:00:18]}  Ne6 {[%clk 0:00:12]} 44. Rd3+ {[%clk 0:00:18]}  Kc5 {[%clk 0:00:11]} 45. Rc3+ {[%clk 0:00:17]}  Kb6 {[%clk 0:00:11]} 46. h4 {[%clk 0:00:15]}  a4 {[%clk 0:00:10]} 47. h5 {[%clk 0:00:13]}  gxh5 {[%clk 0:00:10]} 48. Kg2 {[%clk 0:00:11]}  Rb3 {[%clk 0:00:09]} 49. Rc1 {[%clk 0:00:10]}  Nf4+ {[%clk 0:00:08]} 50. Kg3 {[%clk 0:00:10]}  Ne2+ {[%clk 0:00:08]} 51. Kh4 {[%clk 0:00:10]}  Nxc1 {[%clk 0:00:09]} 52. Kxh5 {[%clk 0:00:10]}  a3 {[%clk 0:00:10]} 53. Bd5 {[%clk 0:00:11]}  a2 {[%clk 0:00:10]} 54. Bxb3 {[%clk 0:00:11]}  Nxb3 {[%clk 0:00:11]} 55. Kh6 {[%clk 0:00:10]}  a1=Q {[%clk 0:00:12]} 56. Kxh7 {[%clk 0:00:07]}  Qf6 {[%clk 0:00:13]} 0-1


[Site "https://www.chess.com"]

[Event "Titled Tuesday Blitz August 1 Late 2023"]
[White "Kostiukov, Alexandr"]
[Black "Poltorak, Sebastian"]
[WhiteFideId "14108100"]
[BlackFideId "1199498"]
[WhiteElo "2352"]
[BlackElo "2533"]
[Result "0-1"]
[Round "3"]
[TimeControl "180+1"]
[Date "2023.08.01"]
[WhiteClock "0:00:00"]
[BlackClock "0:00:09"]
[Board "111"]

1. g3 {[%clk 0:02:59]}  e5 {[%clk 0:02:57]} 2. c4 {[%clk 0:02:54]}  Nc6 {[%clk 0:02:57]} 3. Bg2 {[%clk 0:02:55]}  g6 {[%clk 0:02:57]} 4. Nc3 {[%clk 0:02:54]}  Bg7 {[%clk 0:02:58]} 5. Nf3 {[%clk 0:02:54]}  Nge7 {[%clk 0:02:58]} 6. O-O {[%clk 0:02:53]}  O-O {[%clk 0:02:58]} 7. e3 {[%clk 0:02:49]}  d6 {[%clk 0:02:48]} 8. d4 {[%clk 0:02:49]}  h6 {[%clk 0:02:46]} 9. dxe5 {[%clk 0:02:41]}  Nxe5 {[%clk 0:02:43]} 10. Nxe5 {[%clk 0:02:40]}  dxe5 {[%clk 0:02:43]} 11. b3 {[%clk 0:02:32]}  c6 {[%clk 0:02:13]} 12. Ba3 {[%clk 0:02:31]}  Qc7 {[%clk 0:02:13]} 13. Qe2 {[%clk 0:01:55]}  Bf5 {[%clk 0:01:46]} 14. Rad1 {[%clk 0:01:47]}  Rfd8 {[%clk 0:01:46]} 15. Rxd8+ {[%clk 0:01:45]}  Rxd8 {[%clk 0:01:47]} 16. Rd1 {[%clk 0:01:45]}  Nc8 {[%clk 0:01:39]} 17. Ne4 {[%clk 0:01:30]}  Bxe4 {[%clk 0:01:22]} 18. Bxe4 {[%clk 0:01:28]}  f5 {[%clk 0:01:23]} 19. Bc2 {[%clk 0:01:13]}  e4 {[%clk 0:01:08]} 20. Rxd8+ {[%clk 0:01:04]}  Qxd8 {[%clk 0:01:06]} 21. Qd1 {[%clk 0:01:04]}  Qxd1+ {[%clk 0:01:03]} 22. Bxd1 {[%clk 0:01:04]}  Kf7 {[%clk 0:01:02]} 23. f3 {[%clk 0:00:59]}  exf3 {[%clk 0:00:58]} 24. Bxf3 {[%clk 0:00:58]}  Ke6 {[%clk 0:00:56]} 25. e4 {[%clk 0:00:51]}  Bd4+ {[%clk 0:00:55]} 26. Kf1 {[%clk 0:00:47]}  Nb6 {[%clk 0:00:53]} 27. Bf8 {[%clk 0:00:40]}  h5 {[%clk 0:00:49]} 28. exf5+ {[%clk 0:00:39]}  Kxf5 {[%clk 0:00:47]} 29. h3 {[%clk 0:00:31]}  Nd7 {[%clk 0:00:44]} 30. Ba3 {[%clk 0:00:27]}  Ne5 {[%clk 0:00:43]} 31. Be2 {[%clk 0:00:26]}  Ke4 {[%clk 0:00:39]} 32. Bc1 {[%clk 0:00:22]}  Nd3 {[%clk 0:00:27]} 33. Bh6 {[%clk 0:00:19]}  Nb4 {[%clk 0:00:23]} 34. a4 {[%clk 0:00:12]}  Bc3 {[%clk 0:00:16]} 35. g4 {[%clk 0:00:12]}  hxg4 {[%clk 0:00:15]} 36. Bxg4 {[%clk 0:00:12]}  Nd3 {[%clk 0:00:14]} 37. Ke2 {[%clk 0:00:11]}  Nc5 {[%clk 0:00:12]} 38. Bc8 {[%clk 0:00:08]}  b6 {[%clk 0:00:09]} 39. Be3 {[%clk 0:00:05]}  Nxb3 {[%clk 0:00:09]} 40. h4 {[%clk 0:00:05]}  Na5 {[%clk 0:00:08]} 41. Be6 {[%clk 0:00:03]}  Ke5 {[%clk 0:00:08]} 42. Bf7 {[%clk 0:00:04]}  Kf6 {[%clk 0:00:08]} 43. Be8 {[%clk 0:00:04]}  Nxc4 {[%clk 0:00:08]} 44. Bg5+ {[%clk 0:00:02]}  Kg7 {[%clk 0:00:08]} 45. Bxc6 {[%clk 0:00:03]}  Ne5 {[%clk 0:00:08]} 46. Be4 {[%clk 0:00:02]}  Nf7 {[%clk 0:00:08]} 47. Be3 {[%clk 0:00:00]}  Bf6 {[%clk 0:00:09]} 0-1


[Site "https://www.chess.com"]

[Event "Titled Tuesday Blitz August 1 Late 2023"]
[White "Altman, Joshua"]
[Black "2good4u734"]
[WhiteFideId "426210"]
[WhiteElo "2532"]
[BlackElo "2341"]
[Result "0-1"]
[Round "3"]
[TimeControl "180+1"]
[Date "2023.08.01"]
[WhiteClock "0:00:11"]
[BlackClock "0:00:42"]
[Board "113"]

1. d4 {[%clk 0:03:00]}  Nf6 {[%clk 0:02:59]} 2. c4 {[%clk 0:02:59]}  g6 {[%clk 0:03:00]} 3. Nc3 {[%clk 0:03:00]}  Bg7 {[%clk 0:03:00]} 4. Nf3 {[%clk 0:03:00]}  O-O {[%clk 0:03:00]} 5. Bg5 {[%clk 0:02:58]}  d6 {[%clk 0:02:59]} 6. e3 {[%clk 0:02:58]}  h6 {[%clk 0:02:58]} 7. Bh4 {[%clk 0:02:58]}  g5 {[%clk 0:02:58]} 8. Bg3 {[%clk 0:02:58]}  Nh5 {[%clk 0:02:59]} 9. Nd2 {[%clk 0:02:57]}  Nxg3 {[%clk 0:02:58]} 10. hxg3 {[%clk 0:02:58]}  e5 {[%clk 0:02:56]} 11. d5 {[%clk 0:02:56]}  f5 {[%clk 0:02:55]} 12. Bd3 {[%clk 0:02:54]}  Nd7 {[%clk 0:02:53]} 13. g4 {[%clk 0:02:54]}  Nc5 {[%clk 0:02:42]} 14. Bc2 {[%clk 0:02:48]}  fxg4 {[%clk 0:02:39]} 15. Nde4 {[%clk 0:02:47]}  Nxe4 {[%clk 0:02:32]} 16. Nxe4 {[%clk 0:02:48]}  Qe8 {[%clk 0:02:32]} 17. Ng3 {[%clk 0:02:41]}  Qf7 {[%clk 0:02:30]} 18. Qd2 {[%clk 0:02:36]}  e4 {[%clk 0:02:26]} 19. Bxe4 {[%clk 0:02:30]}  Bd7 {[%clk 0:02:17]} 20. O-O-O {[%clk 0:02:15]}  Qxf2 {[%clk 0:02:14]} 21. Nh5 {[%clk 0:01:56]}  Qxd2+ {[%clk 0:02:05]} 22. Rxd2 {[%clk 0:01:57]}  Be5 {[%clk 0:02:04]} 23. c5 {[%clk 0:01:46]}  dxc5 {[%clk 0:02:02]} 24. d6 {[%clk 0:01:47]}  cxd6 {[%clk 0:01:55]} 25. Bxb7 {[%clk 0:01:47]}  Rab8 {[%clk 0:01:55]} 26. Bd5+ {[%clk 0:01:47]}  Kh8 {[%clk 0:01:50]} 27. b3 {[%clk 0:01:34]}  Bf5 {[%clk 0:01:47]} 28. Rf2 {[%clk 0:01:27]}  Bg6 {[%clk 0:01:38]} 29. Rd2 {[%clk 0:01:03]}  Bc3 {[%clk 0:01:32]} 30. Rdd1 {[%clk 0:00:58]}  Rf2 {[%clk 0:01:27]} 31. e4 {[%clk 0:00:54]}  Be5 {[%clk 0:01:19]} 32. Rd2 {[%clk 0:00:36]}  Rbf8 {[%clk 0:01:08]} 33. Rxf2 {[%clk 0:00:34]}  Rxf2 {[%clk 0:01:09]} 34. a3 {[%clk 0:00:30]}  Rxg2 {[%clk 0:01:08]} 35. b4 {[%clk 0:00:30]}  cxb4 {[%clk 0:01:00]} 36. axb4 {[%clk 0:00:31]}  Kh7 {[%clk 0:00:51]} 37. b5 {[%clk 0:00:26]}  Rf2 {[%clk 0:00:50]} 38. Be6 {[%clk 0:00:18]}  g3 {[%clk 0:00:47]} 39. Bf5 {[%clk 0:00:15]}  Bxf5 {[%clk 0:00:45]} 40. exf5 {[%clk 0:00:16]}  Rxf5 {[%clk 0:00:44]} 41. Rg1 {[%clk 0:00:14]}  Rf3 {[%clk 0:00:42]} 42. Kd1 {[%clk 0:00:14]}  Kg6 {[%clk 0:00:42]} 43. Ke2 {[%clk 0:00:12]}  Rf2+ {[%clk 0:00:42]} 44. Ke3 {[%clk 0:00:11]}  Kxh5 {[%clk 0:00:42]} 0-1


[Site "https://www.chess.com"]